fUSD/lending_fUSD_20240618
["ID","MTS","AMOUNT","RATE_DAILY","PERIOD"]
[329837033,1718731838485,-491.18084441,0.00014998,2]
[329837034,1718731838495,-205.90548081,0.00014998,2]
[329837035,1718731838505,-459.6284723,0.00014998,2]
[329837036,1718731838515,-235.57462047,0.00014998,2]
[329837037,1718731838526,-508.22622501,0.00014998,2]
[329837038,1718731838536,-194.34452141,0.00014998,2]
[329837039,1718731838550,-162.83666583,0.00014998,2]
[329837040,1718731838568,-3136.75809897,0.00014998,2]
[329837041,1718731838578,-2593.67580526,0.00014998,2]
[329837042,1718731838587,-4296.3595835,0.00014998,2]
[329837043,1718731838596,-364.50139533,0.00014998,2]
[329837044,1718731838605,-155.0,0.00014998,2]
[329837045,1718731838615,-482.51782929,0.00014998,2]
[329837046,1718731838625,-155.0,0.00014998,2]
[329837047,1718731838635,-410.06375172,0.00014998,2]
[329837049,1718731838644,-188.38769027,0.00014998,2]
[329837051,1718731838654,-267.62549217,0.00014998,2]
[329837053,1718731838664,-155.0,0.00014998,2]
[329837055,1718731838674,-168.84683026,0.00014998,2]
[329837060,1718731838684,-1929.99084665,0.00014998,2]
[329837063,1718731838694,-155.0,0.00014998,2]
[329837066,1718731838704,-233.31171072,0.00014998,2]
[329837067,1718731838714,-155.0,0.00014998,2]
[329837068,1718731838723,-205.78053234,0.00014998,2]
[329837069,1718731838733,-689.88804783,0.00014999,2]
[329837070,1718731838742,-1078.08917095,0.00014999,2]
[329837071,1718731838752,-156.25165599,0.00014999,2]
[329837072,1718731838762,-202.90716788,0.00014999,2]
[329837073,1718731838771,-217.30730941,0.00014999,2]
[329837074,1718731838781,-2435.2439753,0.00014999,2]
[329837075,1718731838794,-176.16911884,0.00014999,2]
[329837076,1718731838807,-1398.84642178,0.00014999,2]
[329837077,1718731838816,-653.41419536,0.00014999,2]
[329837078,1718731838828,-1000.0,0.00014999,2]
[329837079,1718731838838,-5841077.95883644,0.00015,2]
[329837080,1718731838851,-799369.52965335,0.00015,2]
[329837081,1718731839141,-21776.5515836,0.00015,2]
[329837082,1718731839204,-370.27272899,0.00015,2]
[329837083,1718731839216,-160125.5699016,0.00015,2]
[329837089,1718731839982,-527.33758335,0.00015,2]
[329837090,1718731840240,-177.3765885,0.0001489,2]
[329837091,1718731840250,-4978.83227482,0.00015,2]
[329837092,1718731840262,-330.53766328,0.00015,2]
[329837093,1718731840274,-1677.4,0.00015,2]
[329837094,1718731840287,-397.34954669,0.00015,2]
[329837095,1718731840299,-528.5269001,0.00015,2]
[329837096,1718731840320,-10658.90839834,0.00015,2]
[329837097,1718731840334,-26864.18307131,0.00015,2]
[329837098,1718731840347,-353.81321092,0.00015,2]
[329837099,1718731840359,-349.59060275,0.00015,2]
[329837100,1718731840373,-16705.55278223,0.00015,2]
[329837308,1718731843547,-5331.96904795,0.00014998,2]
[329837460,1718731846307,-1631.275,0.00014998,2]
[329837461,1718731846323,-2899.99026763,0.00014998,2]
[329837462,1718731846332,-882.42754201,0.00014999,2]
[329837463,1718731846342,-1077.74099036,0.00015,2]
[329837464,1718731846353,-2776.6172,0.00015,2]
[329837465,1718731846365,-2247.44095932,0.00015,2]
[329837466,1718731846376,-4435.3332493,0.00015,2]
[329837467,1718731846388,-1116.87,0.00015,2]
[329837520,1718731962977,150.0,0.00028524,30]
[329837521,1718731964691,2728.09329216,0.00028524,30]
[329837522,1718732023969,2628.99999,0.00028524,31]
[329837523,1718732070918,2313.20696532,6.94e-05,2]
[329837524,1718732143384,524.0,0.00028524,30]
[329837532,1718732200195,2084.61687478,0.00025,120]
[329837534,1718732247915,160.0,0.00028524,30]
[329837536,1718732263059,190.0,0.00028524,30]
[329837538,1718732275488,-412.39731356,0.00012959,2]
[329837539,1718732275510,-328.27354476,0.0001296,2]
[329837540,1718732275531,-158.74713839,0.0001296,2]
[329837541,1718732275554,-552.39,0.00012967,2]
[329837542,1718732275747,339.20226691,0.00012958,2]
[329837545,1718732300691,-31000.0,0.0001398,2]
[329837546,1718732313646,150.0,0.00028524,30]
[329837551,1718732744788,524.0,0.00028436,30]
[329837579,1718733032863,-412.39731356,0.00012933,2]
[329837580,1718733032872,-524.77,0.00012934,2]
[329837581,1718733032882,-300.0,0.00013979,2]
[329837582,1718733032894,-12417.68893185,0.0001398,2]
[329837586,1718733033083,-265.1119,0.0001398,2]
[329837587,1718733033096,-268.07010932,0.0001398,2]
[329837588,1718733033109,-756.27288357,0.0001398,2]
[329837601,1718733038118,-4912.95134531,0.0001398,2]
[329837602,1718733038131,-14534.7994027,0.0001398,2]
[329837604,1718733038141,-250.0,0.000145,2]
[329837605,1718733038156,-1000.0,0.00014576,2]
[329837606,1718733038166,-177.16,0.00014598,2]
[329837607,1718733038175,-163.92,0.00014598,2]
[329837608,1718733038184,-293.61,0.00014719,2]
[329837609,1718733038193,-3000.0,0.0001485,2]
[329837610,1718733038205,-150.0,0.00014877,2]
[329837611,1718733038217,-290.5822337,0.00014898,2]
[329837612,1718733038227,-334.5693531,0.00014898,2]
[329837613,1718733038237,-235.72160307,0.00014899,2]
[329837614,1718733038247,-213.15790435,0.00014899,2]
[329837615,1718733038257,-1702.658338,0.000149,2]
[329837616,1718733038267,-2792.46122141,0.000149,2]
[329837617,1718733038278,-17848.54770864,0.000149,2]
[329837618,1718733038290,-1642.6789177,0.000149,2]
[329837619,1718733038304,-673.38953007,0.000149,2]
[329837620,1718733038315,-383.65,0.000149,2]
[329837621,1718733038326,-261.9,0.000149,2]
[329837622,1718733038337,-849.33,0.000149,2]
[329837623,1718733038349,-325.82,0.000149,2]
[329837624,1718733038360,-465.50057494,0.000149,2]
[329837626,1718733038372,-2922.27126424,0.000149,2]
[329837633,1718733038421,-9467.650583,0.000149,2]
[329837635,1718733038431,-445451.65201983,0.000149,2]
[329837637,1718733038441,-126847.92947599,0.000149,2]
[329837639,1718733038450,-359.85807893,0.000149,2]
[329837641,1718733038460,-184.15167195,0.000149,2]
[329837643,1718733038469,-230.18635752,0.000149,2]
[329837645,1718733038479,-176.32029516,0.000149,2]
[329837647,1718733038489,-175.20791801,0.000149,2]
[329837649,1718733038499,-626.5530921,0.000149,2]
[329837651,1718733038508,-219.06,0.00014904,2]
[329837653,1718733038517,-3691.90635158,0.00014985,2]
[329837655,1718733038527,-2480.62940996,0.00014997,2]
[329837657,1718733038537,-449.6773305,0.00014998,2]
[329837659,1718733038546,-899.51929694,0.00014999,2]
[329837661,1718733038556,-211.06380798,0.00014999,2]
[329837663,1718733038565,-5768.0692993,0.00014999,2]
[329837665,1718733038577,-710.24089395,0.00014999,2]
[329837668,1718733038589,-2269.41545763,0.00014999,2]
[329837670,1718733038601,-712.25,0.00014999,2]
[329837672,1718733038612,-6556.54861683,0.00014999,2]
[329837719,1718733040192,-21046.10573229,0.00014999,2]
[329837720,1718733040205,-3412.71094011,0.00015,2]
[329837721,1718733040222,-17631.91225216,0.00015,2]
[329837722,1718733040234,-1232.23230486,0.00015,2]
[329837723,1718733040246,-59948.28438693,0.00015,2]
[329837724,1718733040259,-17555.23722484,0.00015,2]
[329837725,1718733040271,-3255.0,0.00015,2]
[329837726,1718733040443,-4832.22556236,0.00015,2]
[329837727,1718733040455,-894.38824437,0.00015,2]
[329837774,1718733041094,-4139.75197198,0.00015,2]
[329837937,1718733043144,-764.825,0.00015,2]
[329837955,1718733043404,-779.11206504,0.00015,2]
[329837956,1718733043416,-6933.82006838,0.00015,2]
[329837957,1718733043427,-3525.91654635,0.00015,2]
[329837958,1718733043439,-2129.66230494,0.00015,2]
[329837959,1718733043450,-26821.11545556,0.00015,2]
[329837960,1718733043462,-69458.38900007,0.00015,2]
[329837961,1718733043474,-6517.10792,0.00015,2]
[329837962,1718733043487,-685.50165271,0.00015,2]
[329837963,1718733043498,-4303.63783665,0.00015,2]
[329837964,1718733043510,-1405.2,0.00015,2]
[329837965,1718733043521,-405.5664405,0.00015,2]
[329837966,1718733043533,-1016.1,0.00015,2]
[329837967,1718733043545,-10750.945965,0.00015,2]
[329837968,1718733043557,-4757.89928929,0.00015,2]
[329837969,1718733043568,-17365.33401791,0.00015,2]
[329837970,1718733043579,-3924.53627189,0.00015,2]
[329837971,1718733043591,-635.69802414,0.00015,2]
[329837972,1718733043602,-1104.29826111,0.00015,2]
[329837973,1718733043614,-1370.91809665,0.00015,2]
[329837978,1718733044204,-719.07075033,0.00015,2]
[329837979,1718733044217,-300.08603421,0.00015,2]
[329837980,1718733044231,-6154.67876753,0.00015,2]
[329837988,1718733046363,-29608.72670689,0.00015,2]
[329837989,1718733046375,-26046.87249875,0.00015,2]
[329837990,1718733046386,-9411.26014652,0.00015,2]
[329837991,1718733046398,-25574.52361261,0.00015,2]
[329837992,1718733046413,-1030.31,0.00015,2]
[329837993,1718733046443,-129042.4110952,0.00015,2]
[329838002,1718733149648,160.0,0.00028435,30]
[329838005,1718733308534,161.26,0.00024658,120]
[329838006,1718733350318,524.0,0.00028435,30]
[329838010,1718733947599,524.0,0.00028421,30]
[329838017,1718734050625,160.0,0.00028421,30]
[329838043,1718734232406,-1.09720946,0.00013566,2]
[329838044,1718734232419,-295.16275125,0.00013566,2]
[329838045,1718734232429,-91.39670859,0.00013567,2]
[329838046,1718734232441,-513.88418567,0.00013567,2]
[329838047,1718734232451,-498.53,0.00014327,2]
[329838048,1718734232461,-3000.0,0.0001485,2]
[329838049,1718734232471,-300.0,0.00014897,2]
[329838050,1718734232482,-12444.454,0.00014898,2]
[329838051,1718734232492,-500.0,0.000149,2]
[329838052,1718734232503,-394.68597995,0.00014998,2]
[329838053,1718734232513,-3275.22121734,0.00014998,2]
[329838054,1718734232524,-157.13383188,0.00014998,2]
[329838055,1718734232534,-164.46892147,0.00014998,2]
[329838056,1718734232544,-160.48212571,0.00014999,2]
[329838057,1718734232553,-386.55945984,0.00014999,2]
[329838058,1718734232567,-1000.0,0.00015,2]
[329838059,1718734232578,-2584.59,0.00015,6]
[329838060,1718734232587,-321200.23957623,0.00015,2]
[329838080,1718734233018,-2593.50362,0.00015,2]
[329838081,1718734233030,-154963.32732815,0.00015,2]
[329838090,1718734238432,-4932.10948509,0.00015,2]
[329838091,1718734238443,-388124.93485841,0.00015,2]
[329838356,1718734243341,-259.85382312,0.00015,2]
[329838363,1718734243655,-792.38851349,0.00015,2]
[329838366,1718734243672,-449.3685477,0.00015,2]
[329838386,1718734244513,-257.56707453,0.00015,2]
[329838388,1718734244525,-310.0,0.00015,2]
[329838390,1718734244537,-432.0,0.00015,2]
[329838391,1718734244548,-8903.12272239,0.00015,2]
[329838394,1718734244702,-2295.6112263,0.00015,2]
[329838398,1718734246445,-263.61017867,0.00015,2]
[329838399,1718734246457,-587.30267599,0.00015,2]
[329838400,1718734246468,-647.17,0.00015,2]
[329838401,1718734246773,-2108.9075643,0.00015,2]
[329838402,1718734246819,-384.69375401,0.00015,2]
[329838405,1718734246853,-7587.98482161,0.00015,2]
[329838453,1718734541743,528.0,0.00028421,30]
[329838454,1718734804272,50000.0,0.0002841,30]
[329838455,1718734848948,50000.0,0.0002841,30]
[329838458,1718734894806,50000.0,0.0002841,30]
[329838459,1718734933179,50000.0,0.0002841,30]
[329838460,1718734951098,160.0,0.0002841,30]
[329838461,1718735008320,50000.0,0.0002841,30]
[329838462,1718735065571,50000.0,0.0002841,30]
[329838463,1718735073540,473.6,0.00012535,2]
[329838465,1718735148275,50000.0,0.00028411,30]
[329838466,1718735150918,180.88741055,0.00012535,2]
[329838467,1718735168927,180.88741055,0.00012535,2]
[329838468,1718735184915,243.65407179,0.00012535,2]
[329838478,1718735300482,50000.0,0.00028411,30]
[329838479,1718735317901,50000.0,0.00028411,30]
[329838481,1718735341404,50000.0,0.00028411,30]
[329838506,1718735432495,-264.17463857,0.00014249,2]
[329838508,1718735432504,-600.0,0.0001425,2]
[329838510,1718735432513,-1000.0,0.000143,2]
[329838512,1718735432522,-1130.0,0.000143,2]
[329838514,1718735432531,-250.0,0.00014389,2]
[329838516,1718735432541,-166.93554559,0.00014521,2]
[329838530,1718735432781,-27.44445441,0.00014521,2]
[329838531,1718735432793,-161.26,0.00014552,2]
[329838532,1718735432802,-139.62554559,0.00014669,2]
[329838533,1718735432815,-24.29445441,0.00014669,2]
[329838534,1718735432827,-473.6,0.00014799,2]
[329838535,1718735432838,-444.03115,0.0001485,2]
[329838536,1718735432849,-3000.0,0.0001487,2]
[329838537,1718735432860,-500.0,0.00014879,2]
[329838538,1718735432871,-500.0,0.00014879,2]
[329838539,1718735432881,-500.0,0.0001488,2]
[329838540,1718735432892,-200.0,0.0001488,2]
[329838541,1718735432903,-1000.0,0.0001488,2]
[329838542,1718735432914,-500.0,0.0001488,2]
[329838543,1718735432923,-500.0,0.0001488,2]
[329838544,1718735432933,-500.0,0.0001488,2]
[329838545,1718735432943,-200.0,0.0001488,2]
[329838546,1718735432952,-15067.4443,0.000149,2]
[329838547,1718735432962,-418.09,0.000149,2]
[329838548,1718735432971,-852.19,0.000149,2]
[329838549,1718735432981,-306.82,0.00014904,3]
[329838550,1718735432991,-201.7883104,0.00014988,2]
[329838552,1718735433000,-17263.039988,0.00014988,2]
[329838553,1718735433010,-1626.58334271,0.00014998,2]
[329838554,1718735433019,-793.21543571,0.00014998,2]
[329838555,1718735433030,-155.0,0.00014998,2]
[329838556,1718735433045,-418.87700482,0.00014999,2]
[329838557,1718735433055,-701.0,0.00015,2]
[329838558,1718735433065,-467951.74059841,0.00015,2]
[329838559,1718735433079,-359372.14978118,0.00015,2]
[329838560,1718735433094,-428.32614833,0.00015,2]
[329838561,1718735433107,-30448.62860873,0.00015,2]
[329838564,1718735439107,-5128.36503693,0.00015,2]
[329838565,1718735439120,-8103.98650228,0.00015,2]
[329838567,1718735439454,-324.908,0.00015,2]
[329838570,1718735439467,-15067.444371,0.00015,2]
[329838572,1718735439480,-1603.2000001,0.00015,2]
[329838574,1718735439492,-1000.0,0.00015,2]
[329838653,1718735440613,-881.37761926,0.00015,2]
[329838654,1718735440626,-870.03957915,0.00015,2]
[329838655,1718735440956,-209.43850241,0.00014999,2]
[329838656,1718735440966,-96.59328623,0.00015,2]
[329838658,1718735441297,-4147.20879784,0.00015,2]
[329838660,1718735441309,-548.60584915,0.00015,2]
[329838760,1718735444349,-636.0,0.00015,2]
[329838762,1718735444358,-382.86668665,0.00015,2]
[329838835,1718735446519,-4345.75403169,0.00015,2]
[329838836,1718735446530,-20841.48639407,0.00015,2]
[329838837,1718735446541,-34247.40116125,0.00015,2]
[329838838,1718735446857,-263.67845502,0.00014999,2]
[329838840,1718735446867,-158365.49620845,0.00015,2]
[329838843,1718735446879,-5979.40394953,0.00015,2]
[329838845,1718735446891,-655.0,0.00015,2]
[329838847,1718735446903,-1137.34115621,0.00015,2]
[329839645,1718735564788,1850.6,0.00028411,30]
[329839646,1718735602025,50000.0,0.00028411,30]
[329839647,1718735636374,426.24,0.00013751,2]
[329839648,1718735642480,50000.0,0.00028411,30]
[329839649,1718735742669,309.0,0.00028411,30]
[329839650,1718735756516,50000.0,0.00028411,30]
[329839651,1718735826243,50000.0,0.00028411,30]
[329839653,1718735850053,160.0,0.00028411,30]
[329839654,1718735852365,-304.86533253,0.00014372,2]
[329839655,1718735852393,-20.63466747,0.00014372,2]
[329839656,1718735902466,50000.0,0.00028411,30]
[329839657,1718735930284,50000.0,0.00028411,30]
[329839659,1718736079332,35938.22220606,0.00028458,30]
[329839660,1718736141418,193.38,0.00012903,2]
[329839661,1718736189599,8301.35110711,0.00012903,2]
[329839662,1718736189623,10000.0,0.00012903,2]
[329839663,1718736189645,1990.28892403,0.00012903,2]
[329839664,1718736201561,2835.22186004,0.00012903,2]
[329839665,1718736225063,5174.48921593,0.00012903,2]
[329839666,1718736225086,10000.0,0.00012903,2]
[329839667,1718736225108,10000.0,0.00012903,2]
[329839668,1718736247283,-519.57002477,0.00012902,2]
[329839669,1718736247310,-9480.42997523,0.00012903,2]
[329839670,1718736247983,-10000.0,0.00012903,2]
[329839671,1718736248708,-10000.0,0.00012903,2]
[329839672,1718736274707,-10000.0,0.00012903,2]
[329839673,1718736286210,-368.11435877,0.00012902,2]
[329839674,1718736286233,-9631.88564123,0.00012903,2]
[329839675,1718736288057,-10000.0,0.00012903,2]
[329839676,1718736289184,-10000.0,0.00012903,2]
[329839677,1718736295448,-4600.0,0.00012903,2]
[329839678,1718736312679,627.72947824,9.677e-05,2]
[329839681,1718736360030,100340.91728043,9.677e-05,2]
[329839682,1718736411449,-3104.56218606,0.00012291,2]
[329839683,1718736411477,-887.19772806,0.00012291,2]
[329839684,1718736411503,-1262.33124667,0.00012292,2]
[329839685,1718736411531,-307.84758653,0.00012293,2]
[329839686,1718736411560,-404.92,0.00012295,2]
[329839687,1718736411588,-150.0,0.00012902,2]
[329839688,1718736411615,-5759.03115751,0.00012903,2]
[329839693,1718736430430,-250.0,0.00014148,2]
[329839694,1718736430463,-177.16,0.00014168,2]
[329839695,1718736430491,-1000.0,0.00014373,2]
[329839696,1718736430519,-404.92,0.00014558,2]
[329839697,1718736430549,-300.0,0.00014849,2]
[329839698,1718736430577,-444.03115,0.0001485,2]
[329839699,1718736430607,-3000.0,0.0001485,2]
[329839700,1718736430635,-3000.0,0.0001485,2]
[329839701,1718736430662,-444.03116,0.0001486,2]
[329839702,1718736430689,-200.0,0.00014879,2]
[329839703,1718736430717,-500.0,0.00014879,2]
[329839704,1718736430743,-200.0,0.00014879,2]
[329839705,1718736430770,-200.0,0.0001488,2]
[329839706,1718736430798,-500.0,0.0001488,2]
[329839707,1718736430825,-500.0,0.0001488,2]
[329839708,1718736430853,-200.0,0.0001488,2]
[329839709,1718736430880,-685.94249206,0.00014899,2]
[329839710,1718736430909,-500.0,0.000149,2]
[329839711,1718736430938,-290.337,0.000149,2]
[329839712,1718736430965,-931.1465,0.000149,2]
[329839713,1718736430994,-2715.0147,0.000149,2]
[329839714,1718736431023,-9016.1602,0.000149,2]
[329839715,1718736431051,-1380.5401,0.000149,2]
[329839716,1718736431078,-5126.0387,0.000149,2]
[329839717,1718736431107,-500.0,0.000149,2]
[329839718,1718736431134,-515.80952905,0.000149,2]
[329839719,1718736431161,-219.6763,0.000149,2]
[329839720,1718736431188,-1655.61086043,0.000149,2]
[329839721,1718736431215,-234.97,0.000149,2]
[329839722,1718736431242,-852.19,0.000149,2]
[329839723,1718736431269,-263.42284993,0.000149,2]
[329839724,1718736431295,-347.16883492,0.000149,2]
[329839725,1718736431322,-1288.52237678,0.000149,2]
[329839726,1718736431351,-326.23244424,0.000149,2]
[329839727,1718736431379,-444.03115,0.000149,2]
[329839728,1718736431407,-6431.7238685,0.00014988,2]
[329839729,1718736431433,-12163.118839,0.00014988,2]
[329839730,1718736431462,-89281.4705688,0.00014988,2]
[329839731,1718736431490,-7104.2397887,0.00014988,2]
[329839732,1718736431516,-2138.2187675,0.00014988,2]
[329839733,1718736431544,-16364.75,0.00014989,2]
[329839734,1718736431572,-201.6567933,0.0001499,2]
[329839735,1718736431601,-296.86066051,0.00014998,2]
[329839736,1718736431627,-155.0,0.00014998,2]
[329839737,1718736431654,-427.23687423,0.00014998,2]
[329839738,1718736431683,-363.42533089,0.00014998,2]
[329839739,1718736431712,-646.5329412,0.00014998,2]
[329839740,1718736431738,-532.14539917,0.00014998,2]
[329839741,1718736431764,-365.8342231,0.00014998,2]
[329839742,1718736431791,-659.76455465,0.00014998,2]
[329839743,1718736431998,-155.0,0.00014998,2]
[329839744,1718736432026,-155.0,0.00014998,2]
[329839745,1718736432054,-2339.46926962,0.00014998,2]
[329839746,1718736432081,-162.83666583,0.00014998,2]
[329839747,1718736432110,-235.40449572,0.00014998,2]
[329839748,1718736432136,-8430.1525627,0.00014998,2]
[329839749,1718736432165,-339.37755264,0.00014998,2]
[329839750,1718736432192,-1068.88601313,0.00014998,2]
[329839751,1718736432220,-360.16436908,0.00014998,2]
[329839752,1718736432249,-1626.79604652,0.00014998,2]
[329839753,1718736432279,-626.52054052,0.00014998,2]
[329839754,1718736432309,-193.34886011,0.00014998,2]
[329839755,1718736432335,-155.05797,0.00014998,2]
[329839756,1718736432368,-1262.02778681,0.00014998,2]
[329839757,1718736432395,-307.50909452,0.00014998,2]
[329839758,1718736432422,-636.36214193,0.00014998,2]
[329839759,1718736432449,-2825.87632769,0.00014999,2]
[329839760,1718736432477,-209.43850241,0.00014999,2]
[329839761,1718736432504,-572.0,0.00015,2]
[329839762,1718736432534,-1459416.94693898,0.00015,2]
[329839778,1718736632871,-283.33072782,0.0001414,2]
[329839779,1718736632882,-155.0,0.00014141,2]
[329839780,1718736632892,-491.25981748,0.00014141,2]
[329839781,1718736632902,-291.93341729,0.00014142,2]
[329839783,1718736632912,-156.91536757,0.00014142,2]
[329839784,1718736632921,-155.0,0.00014143,2]
[329839785,1718736632931,-300.0,0.00014145,2]
[329839787,1718736632940,-150.0,0.00014146,2]
[329839788,1718736632950,-3686.23334618,0.00014146,2]
[329839799,1718736633395,-20498.18333346,0.00014146,2]
[329839801,1718736633608,-11299.98285621,0.00014146,2]
[329839802,1718736633620,-46.78664578,0.00014146,2]
[329839803,1718736633630,-247.88937106,0.00014898,2]
[329839804,1718736633639,-303.84056028,0.00014898,2]
[329839805,1718736633648,-610.94070059,0.000149,2]
[329839806,1718736633659,-766.05929941,0.000149,2]
[329839807,1718736633668,-250.80815538,0.00014925,2]
[329839808,1718736633678,-4619.93338365,0.00014985,2]
[329839809,1718736633687,-152.5649896,0.00014988,2]
[329839810,1718736633696,-2014.4829562,0.00014988,2]
[329839811,1718736633705,-3809.6156017,0.00014988,2]
[329839812,1718736633714,-43737.5436739,0.00014988,2]
[329839813,1718736633724,-10035.3858413,0.00014988,2]
[329839814,1718736633733,-3101.30314717,0.00014998,2]
[329839815,1718736633743,-4295.75794545,0.00014998,2]
[329839816,1718736633752,-297.09391661,0.00014998,2]
[329839817,1718736633761,-386691.45759826,0.00014998,2]
[329839843,1718736640539,-404.64145571,0.00014988,2]
[329839844,1718736640552,-616.38,0.00014988,2]
[329839845,1718736640565,-1975.40160559,0.00014988,2]
[329839846,1718736640575,-21982.29839441,0.00014998,2]
[329839847,1718736640588,-46504.47736385,0.00014998,2]
[329839848,1718736640600,-9084.2900005,0.00014998,2]
[329839849,1718736640614,-6575.63491574,0.00014998,2]
[329839852,1718736641301,-10637.33854429,0.00014998,2]
[329839894,1718736641733,-189545.7062536,0.00014998,2]
[329839896,1718736641743,-155.0,0.00014998,2]
[329839898,1718736641753,-2196.60550716,0.00014998,2]
[329839900,1718736641762,-1000.0,0.00014998,2]
[329839903,1718736641772,-307.75042507,0.00014998,2]
[329839905,1718736641781,-155.12871103,0.00014998,2]
[329839907,1718736641791,-155.0,0.00014998,2]
[329839909,1718736641801,-1250.47073675,0.00014998,2]
[329839911,1718736641810,-10527.1686057,0.00014998,2]
[329839913,1718736641820,-155.0,0.00014998,2]
[329839915,1718736641829,-410.0140434,0.00014998,2]
[329839917,1718736641838,-2825.45188421,0.00014998,2]
[329839919,1718736641848,-209.74183051,0.00014998,2]
[329839921,1718736641858,-339.07696494,0.00014998,2]
[329839923,1718736641867,-155.0,0.00014998,2]
[329839925,1718736641876,-176.67978889,0.00014998,2]
[329839927,1718736641886,-538.33838683,0.00014998,2]
[329839930,1718736641896,-646.43853102,0.00014999,2]
[329839932,1718736641905,-155.19899288,0.00014999,2]
[329839934,1718736641914,-317.17607731,0.00014999,2]
[329839936,1718736641924,-391.41536122,0.00014999,2]
[329839938,1718736641933,-258.37137548,0.00014999,2]
[329839939,1718736641943,-1110.13586584,0.00014999,2]
[329839942,1718736641955,-1261.1296843,0.00014999,2]
[329839944,1718736641966,-1626.58334271,0.00014999,2]
[329839946,1718736641976,-4449.51330229,0.00014999,2]
[329839948,1718736641985,-201.86291814,0.00014999,2]
[329839950,1718736641995,-920.53374068,0.00014999,2]
[329839952,1718736642005,-3068.86718638,0.00014999,2]
[329839954,1718736642015,-155.0,0.00014999,2]
[329839956,1718736642024,-155.18399816,0.00014999,2]
[329839958,1718736642034,-155.0,0.00014999,2]
[329839960,1718736642043,-507.31737144,0.00014999,2]
[329839962,1718736642053,-269.02757658,0.00014999,2]
[329839964,1718736642062,-235.37048303,0.00014999,2]
[329839966,1718736642072,-155.0,0.00014999,2]
[329839968,1718736642081,-1220.40440166,0.00014999,2]
[329839970,1718736642091,-155.0,0.00014999,2]
[329839972,1718736642100,-508.0,0.00015,2]
[329839974,1718736642110,-15242.84530946,0.00015,2]
[329839977,1718736642121,-37562.98002971,0.00015,2]
[329839979,1718736642132,-3019388.87457143,0.00015,2]
[329839981,1718736642143,-1443.26152,0.00015,2]
[329839983,1718736642156,-1939.8181,0.00015,2]
[329840000,1718736642299,-307.3,0.00015,2]
[329840002,1718736642311,-1292.86092945,0.00015,2]
[329840451,1718736646970,-640.15657549,0.00015,2]
[329840454,1718736646982,-909.60974868,0.00015,2]
[329840456,1718736646992,-696.5591496,0.00015,2]
[329840468,1718736647289,-165.4084403,0.00014999,2]
[329840469,1718736647299,-2698.71779063,0.00015,2]
[329840471,1718736647310,-649.21,0.00015,2]
[329840473,1718736647322,-195149.31749553,0.00015,2]
[329840501,1718736648138,-164.28095751,0.00015,2]
[329840502,1718736648149,-12724.44097027,0.00015,2]
[329840503,1718736648161,-8400.0,0.00015,2]
[329840504,1718736650579,660.0,9.677e-05,2]
[329840505,1718736653625,844.0,9.677e-05,2]
[329840506,1718736676380,948.81827996,9.677e-05,2]
[329840507,1718736694287,948.64551944,9.677e-05,2]
[329840511,1718736767542,328.85,0.00025,60]
[329840512,1718736808891,500.0,9.6e-05,2]
[329840513,1718737202649,150.0,9.6e-05,2]
[329840514,1718737202895,248.69147384,9.6e-05,2]
[329840515,1718737366348,-297.95,0.00010121,2]
[329840516,1718737366376,-2002.52367702,0.0001022,2]
[329840517,1718737366401,-576.12188171,0.00010221,2]
[329840518,1718737366423,-151.39412324,0.00010222,2]
[329840519,1718737366445,-163.56,0.00010322,2]
[329840520,1718737366468,-200.0,0.00010959,2]
[329840521,1718737366492,-200.0,0.00010959,2]
[329840522,1718737457357,291.93341729,0.00010958,2]
[329840523,1718737503918,300.04432676,0.00010958,2]